bitfinex/quotes_BTCUSD_20250226
["timestamp","ask_amount","ask_price","bid_price","bid_amount"]
[1740542745587,0.0014241,89154.0,89151.0,0.01378421]
[1740542745917,0.0014241,89154.0,89153.0,0.29305]
[1740542746117,0.0014241,89154.0,89153.0,0.30132366]
[1740542746317,0.013784,89193.0,89153.0,0.30132366]
[1740542746318,0.01454085,89196.0,89155.0,0.0783]
[1740542746522,0.16833083,89177.0,89158.0,0.0783]
[1740542746868,0.00012583,89177.0,89161.0,0.0761]
[1740542747065,0.01958116,89177.0,89163.0,0.0761]
[1740542747284,0.01958116,89177.0,89162.0,0.09252259]
[1740542747285,0.00012583,89177.0,89165.0,0.0761]
[1740542747457,0.00012583,89177.0,89166.0,0.04916981]
[1740542747639,0.00012583,89177.0,89168.0,0.224295]
[1740542747851,0.00012583,89177.0,89174.0,0.168209]
[1740542748074,0.00012583,89177.0,89175.0,0.168208]
[1740542748277,0.00012583,89177.0,89175.0,0.17645942]
[1740542748455,0.02086137,89176.0,89175.0,0.00825142]
[1740542748881,0.02086137,89176.0,89169.0,0.0476]
[1740542748882,0.02086137,89176.0,89170.0,0.168217]
[1740542749053,0.02086137,89176.0,89175.0,0.00825142]
[1740542749275,0.02086137,89176.0,89175.0,0.006]
[1740542749446,0.02086137,89176.0,89175.0,0.01425142]
[1740542749670,0.02086137,89176.0,89175.0,0.01218514]
[1740542749869,0.02086137,89176.0,89175.0,0.02043656]
[1740542750089,0.02140604,89177.0,89175.0,0.02043656]
[1740542750493,0.02040604,89177.0,89175.0,0.01443656]
[1740542750683,0.02040604,89177.0,89176.0,0.0782]
[1740542751042,0.02040604,89177.0,89176.0,0.09847407]
[1740542751415,0.04123811,89177.0,89176.0,0.09847407]
[1740542751669,0.001,89177.0,89176.0,0.09847407]
[1740542752016,0.001,89177.0,89176.0,0.09022366]
[1740542752247,0.002,89177.0,89176.0,0.10347407]
[1740542752445,0.003,89177.0,89176.0,0.11047407]
[1740542753361,0.0335963,89177.0,89176.0,0.11047407]
[1740542754322,0.2018003,89177.0,89176.0,0.11047407]
[1740542754531,0.0335963,89177.0,89176.0,0.11047407]
[1740542755858,0.02318679,89177.0,89176.0,0.11047407]
[1740542757366,0.02318679,89177.0,89176.0,0.09645041]
[1740542757867,0.19139079,89177.0,89176.0,0.09645041]
[1740542758610,0.02318679,89177.0,89176.0,0.09645041]
[1740542759113,0.49139079,89177.0,89176.0,0.02025041]
[1740542759662,0.49139079,89177.0,89176.0,0.012]
[1740542760734,0.168215,89172.0,89163.0,0.0823]
[1740542760931,0.168216,89171.0,89164.0,0.01304]
[1740542761072,0.168216,89171.0,89164.0,0.02130254]
[1740542761279,0.168218,89170.0,89163.0,0.0823]
[1740542761483,0.02018679,89177.0,89163.0,0.0823]
[1740542761876,0.168226,89166.0,89159.0,0.0481]
[1740542762006,0.00100004,89176.0,89163.0,0.007]
[1740542762207,0.168229,89164.0,89163.0,0.004]
[1740542763614,0.224295,89169.0,89159.0,0.0481]
[1740542763827,0.168233,89162.0,89160.0,0.00826658]
[1740542764039,0.168233,89162.0,89159.0,0.0521]
[1740542764243,0.168233,89162.0,89161.0,0.00826557]
[1740542764465,0.168234,89161.0,89160.0,0.00826658]
[1740542764744,0.00100004,89167.0,89154.0,0.0823]
[1740542764982,0.168236,89161.0,89160.0,0.00826658]
[1740542765222,0.168237,89160.0,89154.0,0.0823]
[1740542765467,0.168237,89160.0,89159.0,0.005]
[1740542766203,0.001,89162.0,89154.0,0.09550956]
[1740542766448,0.02080576,89160.0,89154.0,0.09550956]
[1740542766667,0.0312086,89160.0,89154.0,0.09550956]
[1740542766898,0.0312086,89160.0,89155.0,0.01453052]
[1740542767345,0.0312086,89160.0,89156.0,0.00827062]
[1740542767584,0.02080576,89159.0,89156.0,0.00827062]
[1740542768521,0.02080576,89159.0,89156.0,0.01327062]
[1740542768722,0.01040284,89158.0,89156.0,0.01327062]
[1740542768936,0.01040284,89158.0,89156.0,0.00827062]
[1740542769152,0.01040284,89158.0,89156.0,0.01327062]
[1740542769306,0.0312086,89158.0,89156.0,0.01327062]
[1740542769554,0.0312086,89158.0,89156.0,0.02987553]
[1740542770330,0.02080576,89157.0,89156.0,0.02987553]
[1740542770555,0.02080576,89157.0,89156.0,0.02487553]
[1740542770749,0.02080576,89157.0,89156.0,0.02987553]
[1740542770971,0.02080576,89157.0,89156.0,0.03687553]
[1740542771244,0.02080576,89157.0,89156.0,0.02027062]
[1740542771457,0.02080576,89157.0,89156.0,0.01327062]
[1740542771680,0.02080576,89157.0,89156.0,0.00827062]
[1740542771880,0.001,89157.0,89156.0,0.01327062]
[1740542772093,0.001,89157.0,89156.0,0.005]
[1740542772252,0.001,89157.0,89156.0,0.01327062]
[1740542772499,0.002,89157.0,89156.0,0.02645186]
[1740542772815,0.524284,89173.0,89156.0,0.03472248]
[1740542773145,0.168234,89162.0,89156.0,0.03472248]
[1740542773349,0.168235,89161.0,89156.0,0.03472248]
[1740542773526,0.168234,89162.0,89157.0,0.01659705]
[1740542773740,0.168234,89162.0,89156.0,0.01527062]
[1740542773945,0.168234,89162.0,89156.0,0.004]
[1740542774140,0.168234,89162.0,89157.0,0.00826961]
[1740542774373,0.524284,89173.0,89157.0,0.00826961]
[1740542774576,0.001,89161.0,89156.0,0.009]
[1740542774799,0.001,89161.0,89156.0,0.0180248]
[1740542774954,0.001,89161.0,89157.0,0.00826961]
[1740542775158,0.169236,89161.0,89157.0,0.00826961]
[1740542775661,0.002,89162.0,89157.0,0.00826961]
[1740542775882,0.002,89162.0,89156.0,0.006]
[1740542776658,0.001,89162.0,89156.0,0.0137248]
[1740542776832,0.001,89161.0,89156.0,0.0197248]
[1740542777041,0.002,89161.0,89157.0,0.00826961]
[1740542777256,0.001,89161.0,89157.0,0.00826961]
[1740542777464,0.001,89162.0,89157.0,0.00826961]
[1740542777881,0.002,89162.0,89157.0,0.00826961]
[1740542778180,0.001,89161.0,89157.0,0.00826961]
[1740542778408,0.001,89161.0,89157.0,0.02427865]
[1740542778555,0.002,89161.0,89157.0,0.03727865]
[1740542778713,0.170235,89161.0,89157.0,0.02900904]
[1740542779133,0.002,89161.0,89157.0,0.02900904]
[1740542779329,0.168236,89160.0,89158.0,0.0082686]
[1740542779613,0.168236,89160.0,89158.0,0.02099596]
[1740542779770,0.001,89161.0,89158.0,0.02099596]
[1740542779980,0.001,89161.0,89158.0,0.0082686]
[1740542780412,0.468225,89166.0,89156.0,0.000848]
[1740542780635,0.001,89160.0,89158.0,0.007]
[1740542781016,0.3,89166.0,89156.0,0.000848]
[1740542781200,0.001,89160.0,89158.0,0.006]
[1740542781409,0.001,89160.0,89159.0,0.00826759]
[1740542782960,0.3,89169.0,89159.0,0.00826759]
[1740542783166,0.168232,89163.0,89156.0,0.009848]
[1740542783326,0.168232,89163.0,89157.0,0.00826961]
[1740542783527,0.168233,89162.0,89157.0,0.00826961]
[1740542783729,0.001,89160.0,89159.0,0.006]
[1740542783951,0.002,89160.0,89159.0,0.02126759]
[1740542784543,0.001,89160.0,89159.0,0.01426759]
[1740542784658,0.17023604,89160.0,89159.0,0.01426759]
[1740542785373,0.16824,89158.0,89157.0,0.006]
[1740542785530,0.16924004,89158.0,89157.0,0.006]
[1740542785986,0.3,89172.0,89156.0,0.000848]
[1740542786190,0.00100004,89171.0,89157.0,0.00826961]
[1740542786502,0.001,89160.0,89159.0,0.007]
[1740542786865,0.168231,89163.0,89159.0,0.00826759]
[1740542787062,0.168231,89163.0,89156.0,0.000848]
[1740542787403,0.168233,89162.0,89156.0,0.000848]
[1740542787613,0.168235,89161.0,89157.0,0.00826961]
[1740542788241,0.3,89166.0,89157.0,0.00826961]
[1740542788443,0.0208875,89160.0,89156.0,0.007848]
[1740542788645,0.0208875,89160.0,89157.0,0.00826961]
[1740542788861,0.0208875,89160.0,89156.0,0.0217576]
[1740542789265,0.0208875,89160.0,89157.0,0.00826961]
[1740542789877,0.001,89162.0,89157.0,0.00826961]
[1740542790118,0.001,89161.0,89157.0,0.01426961]
[1740542790297,0.001,89160.0,89158.0,0.01121752]
[1740542790675,0.002,89160.0,89159.0,0.00826759]
[1740542790878,0.0004241,89164.0,89159.0,0.00826759]
[1740542791077,0.001,89162.0,89159.0,0.00826759]
[1740542791310,0.002,89162.0,89157.0,0.012]
[1740542791635,0.002,89162.0,89158.0,0.01099056]
[1740542791784,0.002,89162.0,89159.0,0.00826759]
[1740542792386,0.001,89162.0,89159.0,0.00826759]
[1740542792624,0.001,89160.0,89159.0,0.007]
[1740542792766,0.001,89160.0,89159.0,0.01526759]
[1740542792980,0.002,89160.0,89159.0,0.00826759]
[1740542793182,0.0004241,89164.0,89159.0,0.00826759]
[1740542793391,0.0004241,89164.0,89159.0,0.00982636]
[1740542793593,0.001,89162.0,89161.0,0.168233]
[1740542793791,0.001,89162.0,89161.0,0.25609857]
[1740542793994,0.001,89162.0,89161.0,0.25609957]
[1740542794215,0.001,89162.0,89161.0,0.25509957]
[1740542794618,0.001,89162.0,89161.0,0.30369957]
[1740542794859,0.002,89162.0,89161.0,0.14146557]
[1740542795419,0.001,89162.0,89161.0,0.14146557]
[1740542795754,0.002,89162.0,89161.0,0.14746557]
[1740542795959,0.002,89162.0,89161.0,0.31569957]
[1740542797994,0.002,89162.0,89161.0,0.39221823]
[1740542798792,0.002,89162.0,89161.0,0.71731823]
[1740542799054,0.001,89162.0,89161.0,0.71131823]
[1740542799215,0.002,89162.0,89161.0,0.71731823]
[1740542799757,0.001,89162.0,89161.0,0.71131823]
[1740542800114,0.001,89162.0,89161.0,0.71231823]
[1740542800527,0.001,89162.0,89161.0,0.71731823]
[1740542800886,0.001,89162.0,89161.0,0.71231823]
[1740542801092,0.002,89162.0,89161.0,0.71931823]
[1740542801629,0.0004241,89164.0,89163.0,0.250831]
[1740542801852,0.0004241,89164.0,89163.0,0.37290605]
[1740542803442,0.0004241,89164.0,89163.0,0.42410605]
[1740542804029,0.0014241,89164.0,89163.0,0.43110605]
[1740542804626,0.0014241,89164.0,89163.0,0.42410605]
[1740542804857,0.0014241,89164.0,89163.0,0.75620605]
[1740542805766,0.1949554,89194.0,89172.0,0.224285]
[1740542805919,0.168178,89192.0,89174.0,0.168208]
[1740542806123,0.02427632,89192.0,89173.0,0.10603648]
[1740542806340,0.224231,89194.0,89175.0,0.17641196]
[1740542806542,0.168177,89192.0,89174.0,0.00820697]
[1740542806745,0.00100004,89191.0,89176.0,0.00820495]
[1740542806994,0.00100004,89191.0,89177.0,0.04985285]
[1740542807126,0.00100004,89191.0,89177.0,0.05805679]
[1740542807773,0.02458194,89192.0,89177.0,0.00820394]
[1740542807996,0.00100004,89191.0,89177.0,0.00820394]
[1740542808685,0.00100004,89191.0,89177.0,0.00920394]
[1740542809013,0.00100004,89191.0,89177.0,0.001]
[1740542809569,0.0805,89208.0,89180.0,0.224265]
[1740542809779,0.00100004,89207.0,89187.0,0.168184]
[1740542810033,0.32554957,89207.0,89187.0,0.168184]
[1740542810232,0.32454953,89207.0,89188.0,0.00819283]
[1740542810367,0.00100004,89206.0,89189.0,0.06248878]
[1740542810551,0.3,89202.0,89189.0,0.06248878]
[1740542810768,0.3,89202.0,89190.0,0.0081908]
[1740542810966,0.3,89202.0,89189.0,0.06248878]
[1740542811165,0.3,89202.0,89186.0,0.168187]
[1740542811436,0.3,89202.0,89187.0,0.00751102]
[1740542811863,0.00100004,89201.0,89180.0,0.3251]
[1740542812077,0.00100004,89201.0,89181.0,0.00751657]
[1740542812278,0.168179,89191.0,89181.0,0.00751657]
[1740542812481,0.00100004,89190.0,89182.0,0.04870275]
[1740542812704,0.168173,89194.0,89186.0,0.002]
[1740542812911,0.00100004,89193.0,89186.0,0.002]
[1740542813116,0.32696959,89207.0,89187.0,0.00751102]
[1740542813320,0.00100004,89206.0,89187.0,0.00751102]
[1740542813468,0.168165,89198.0,89186.0,0.002]
[1740542813674,0.168167,89197.0,89187.0,0.00951102]
[1740542813887,0.00100004,89198.0,89187.0,0.00751102]
[1740542814083,0.168169,89196.0,89187.0,0.00751102]
[1740542814285,0.16817,89195.0,89187.0,0.00751102]
[1740542814515,0.16817,89195.0,89186.0,0.06493998]
[1740542815037,0.00100004,89194.0,89187.0,0.00951102]
[1740542815245,0.168173,89194.0,89187.0,0.04716612]
[1740542815461,0.3,89202.0,89188.0,0.0752]
[1740542815658,0.00100004,89201.0,89188.0,0.0752]
[1740542815812,0.3,89203.0,89189.0,0.00750916]
[1740542815994,0.3,89203.0,89190.0,0.05178003]
[1740542815995,0.00100004,89202.0,89190.0,0.05178003]
[1740542816202,0.00100004,89202.0,89191.0,0.00750731]
[1740542816474,0.16915904,89202.0,89191.0,0.00750731]
[1740542816675,0.168159,89201.0,89191.0,0.00750731]
[1740542816816,0.00100004,89200.0,89188.0,0.0752]
[1740542817017,0.16916104,89200.0,89189.0,0.00750916]
[1740542817231,0.00100004,89200.0,89189.0,0.00750916]
[1740542817835,0.168159,89201.0,89189.0,0.00750916]
[1740542818039,0.00100004,89200.0,89189.0,0.00750916]
[1740542818172,0.00100004,89200.0,89189.0,0.00850916]
[1740542818374,0.00100004,89200.0,89189.0,0.04050601]
[1740542818797,0.00100004,89200.0,89189.0,0.04150601]
[1740542818995,0.00100004,89203.0,89189.0,0.04150601]
[1740542819667,0.00100004,89203.0,89189.0,0.04050601]
[1740542819819,0.16915604,89203.0,89189.0,0.04150601]
[1740542820029,0.168157,89202.0,89190.0,0.03245471]
[1740542820224,0.00100004,89201.0,89190.0,0.03245471]
[1740542820425,0.00100004,89201.0,89191.0,0.00750731]
[1740542821234,0.168165,89198.0,89191.0,0.00750731]
[1740542821447,0.168165,89198.0,89188.0,0.0752]
[1740542821672,0.00100004,89199.0,89188.0,0.0752]
[1740542821879,0.168167,89197.0,89188.0,0.08768146]
[1740542822283,0.00100004,89199.0,89191.0,0.002]
[1740542822449,0.168175,89193.0,89191.0,0.002]
[1740542822634,0.16917604,89192.0,89191.0,0.002]
[1740542823044,0.168175,89193.0,89191.0,0.002]
[1740542823243,0.168168,89197.0,89191.0,0.002]
[1740542823537,0.16916904,89196.0,89188.0,0.002]
[1740542823718,0.16916904,89196.0,89188.0,0.003]
[1740542823925,0.168171,89195.0,89191.0,0.004]
[1740542824094,0.16916904,89196.0,89191.0,0.004]
[1740542824300,0.16916904,89196.0,89188.0,0.003]
[1740542824506,0.16916904,89196.0,89191.0,0.002]
[1740542824868,0.00100004,89196.0,89191.0,0.002]
[1740542825116,0.3,89209.0,89192.0,0.08600639]
[1740542825315,0.3,89209.0,89194.0,0.168171]
[1740542825782,0.3,89209.0,89195.0,0.00750361]
[1740542826015,0.00100004,89206.0,89195.0,0.00750361]
[1740542826223,0.00100004,89206.0,89192.0,0.1264]
[1740542826363,0.3,89205.0,89196.0,0.00750268]
[1740542826577,0.00100004,89204.0,89192.0,0.1264]
[1740542826783,0.00100004,89204.0,89197.0,0.00750175]
[1740542826960,0.00100004,89204.0,89192.0,0.1264]
[1740542827171,0.00100004,89204.0,89198.0,0.00750083]
[1740542827370,0.49311759,89207.0,89192.0,0.1264]
[1740542827603,0.49311759,89207.0,89196.0,0.004]
[1740542827808,0.00100004,89206.0,89197.0,0.00750175]
[1740542828020,0.32496959,89207.0,89197.0,0.00750175]
[1740542828263,0.00100004,89206.0,89197.0,0.00750175]
[1740542828394,0.00100004,89206.0,89198.0,0.002]
[1740542829023,0.00100004,89206.0,89199.0,0.0074999]
[1740542829401,0.00100004,89206.0,89198.0,0.002]
[1740542829804,0.00100004,89206.0,89199.0,0.0074999]
[1740542830219,0.00100004,89206.0,89193.0,0.168174]
[1740542830416,0.00100004,89206.0,89197.0,0.001]
[1740542830618,0.00100004,89206.0,89198.0,0.001]
[1740542830935,0.02496959,89207.0,89198.0,0.00750083]
[1740542831140,0.02496959,89207.0,89199.0,0.001]
[1740542831399,0.02496959,89207.0,89199.0,0.002]
[1740542831987,0.02496959,89207.0,89199.0,0.001]
[1740542832210,0.02496959,89207.0,89202.0,0.0777]
[1740542832626,0.02496959,89207.0,89203.0,0.0563962]
[1740542833244,0.02496959,89207.0,89205.0,0.16815]
[1740542833481,0.02496959,89207.0,89205.0,0.168151]
[1740542833696,0.02496959,89207.0,89206.0,0.25334342]
[1740542833874,0.00042006,89207.0,89206.0,0.25334342]
[1740542834082,0.00042006,89207.0,89206.0,0.30124342]
[1740542834526,0.00042006,89207.0,89206.0,0.62634342]
[1740542835129,0.00042006,89207.0,89206.0,0.63334342]
[1740542835361,0.00042006,89207.0,89206.0,0.74720038]
[1740542835948,0.00042006,89207.0,89206.0,0.75420038]
[1740542836146,0.00042006,89207.0,89206.0,0.74720038]
[1740542836552,0.00042006,89207.0,89206.0,0.75420038]
[1740542838866,0.00084416,89207.0,89206.0,0.75420038]
[1740542843058,0.16808,89243.0,89226.0,0.082]
[1740542843210,0.01454085,89258.0,89227.0,0.0295313]
[1740542843211,0.00012601,89237.0,89227.0,0.0295313]
[1740542843412,0.00012601,89237.0,89227.0,0.03700528]
[1740542844752,0.00012601,89237.0,89227.0,0.00747398]
[1740542845513,0.00112601,89237.0,89229.0,0.168105]
[1740542845826,0.00112601,89237.0,89227.0,0.00747398]
[1740542846024,0.00204754,89237.0,89232.0,0.1681]
[1740542846243,0.00104754,89237.0,89233.0,0.02575712]
[1740542846450,0.00104754,89237.0,89234.0,0.00746751]
[1740542846702,0.00104754,89237.0,89233.0,0.02575712]
[1740542846883,4.754e-05,89237.0,89234.0,0.17556451]
[1740542847085,4.754e-05,89237.0,89236.0,0.168093]
[1740542847331,4.754e-05,89237.0,89236.0,0.21830312]
[1740542848287,4.754e-05,89237.0,89236.0,0.05021012]
[1740542849332,4.754e-05,89237.0,89236.0,0.00946566]
[1740542849571,4.754e-05,89237.0,89236.0,0.01646566]
[1740542849952,4.754e-05,89237.0,89236.0,0.01446566]
[1740542850153,4.754e-05,89237.0,89236.0,0.02146566]
[1740542850780,0.00047154,89237.0,89236.0,0.02146566]
[1740542850975,0.00047154,89237.0,89236.0,0.0629926]
[1740542851173,0.00047154,89237.0,89236.0,0.3092856]
[1740542851349,0.00047154,89237.0,89236.0,0.3546856]
[1740542853097,0.00047154,89237.0,89236.0,0.1865926]
[1740542853312,0.00047154,89237.0,89236.0,0.1083926]
[1740542853508,0.00047154,89237.0,89236.0,0.02146566]
[1740542854880,0.00047154,89237.0,89236.0,0.014]
[1740542855079,0.16856254,89237.0,89236.0,0.014]
[1740542855889,0.16856254,89237.0,89236.0,0.007]
[1740542856272,0.16856254,89237.0,89236.0,0.004]
[1740542856424,0.16856254,89237.0,89236.0,0.008]
[1740542856623,0.46856254,89237.0,89236.0,0.004]
[1740542857048,0.46856254,89237.0,89236.0,0.008]
[1740542862909,0.46856254,89237.0,89236.0,0.0088478]
[1740542863128,0.30047154,89237.0,89236.0,0.0088478]
[1740542867085,0.0243918,89241.0,89236.0,0.0088478]
[1740542867391,0.168086,89240.0,89236.0,0.0088478]
[1740542867551,0.168084,89241.0,89236.0,0.0088478]
[1740542868413,0.0004242,89247.0,89236.0,0.0048478]
[1740542868557,0.168078,89245.0,89236.0,0.0078478]
[1740542868764,0.0004242,89247.0,89236.0,0.05853258]
[1740542868964,0.0004242,89247.0,89237.0,0.00746473]
[1740542870005,0.03092284,89247.0,89237.0,0.00746473]
[1740542870162,0.0004242,89247.0,89237.0,0.00946473]
[1740542870347,0.0004242,89247.0,89239.0,0.168087]
[1740542870542,0.0004242,89247.0,89240.0,0.00746196]
[1740542870865,0.0004242,89247.0,89241.0,0.168083]
[1740542871052,0.0004242,89247.0,89240.0,0.00746196]
[1740542871261,0.0004242,89247.0,89242.0,0.00746011]
[1740542871456,0.0004242,89247.0,89241.0,0.01025067]
[1740542871457,0.0004242,89247.0,89241.0,0.00746103]
[1740542871616,0.0004242,89247.0,89243.0,0.00745918]
[1740542871819,0.0004242,89247.0,89237.0,0.005]
[1740542872017,0.0004242,89247.0,89244.0,0.00745826]
[1740542872238,0.0004242,89247.0,89238.0,0.05277616]
[1740542872435,0.03117001,89247.0,89245.0,0.00745733]
[1740542872641,0.03117001,89247.0,89242.0,0.002]
[1740542872985,0.03117001,89247.0,89240.0,0.003]
[1740542873126,0.03117001,89247.0,89237.0,0.002]
[1740542873329,0.03117001,89247.0,89238.0,0.06293987]
[1740542873732,0.03117001,89247.0,89245.0,0.002]
[1740542875052,0.03117001,89247.0,89240.0,0.003]
[1740542875436,0.03117001,89247.0,89237.0,0.002]
[1740542875638,0.03117001,89247.0,89245.0,0.003]
[1740542875861,0.03117001,89247.0,89245.0,0.005]
[1740542876265,0.03117001,89247.0,89237.0,0.168091]
[1740542876479,0.03117001,89247.0,89238.0,0.07468866]
[1740542876698,0.03117001,89247.0,89240.0,0.002]
[1740542876906,0.03117001,89247.0,89238.0,0.08215247]
[1740542877146,0.03117001,89247.0,89241.0,0.00746103]
[1740542877368,0.03117001,89247.0,89238.0,0.07468866]
[1740542877592,0.03117001,89247.0,89245.0,0.003]
[1740542878334,0.03117001,89247.0,89245.0,0.005]
[1740542878548,0.03117001,89247.0,89245.0,0.003]
[1740542878775,0.03117001,89247.0,89236.0,0.05453258]
[1740542878979,0.03117001,89247.0,89245.0,0.003]
[1740542879557,0.03117001,89247.0,89236.0,0.22262558]
[1740542879938,0.03117001,89247.0,89245.0,0.004]
[1740542880097,0.03117001,89247.0,89246.0,0.168074]
[1740542880297,0.03117001,89247.0,89246.0,0.0823]
[1740542880504,0.03117001,89247.0,89246.0,0.08975641]
[1740542882344,0.03117001,89247.0,89246.0,0.09775641]
[1740542882786,0.03117001,89247.0,89246.0,0.09375641]
[1740542883245,0.03117001,89247.0,89246.0,0.09875641]
[1740542884318,0.03117001,89247.0,89246.0,0.09475641]
[1740542884521,0.03117001,89247.0,89246.0,0.09875641]
[1740542885144,0.03117001,89247.0,89246.0,0.09375641]
[1740542885337,0.03117001,89247.0,89246.0,0.08975641]
[1740542885760,0.03117001,89247.0,89246.0,0.09375641]
[1740542885936,0.03117001,89247.0,89246.0,0.08975641]
[1740542886148,0.03117001,89247.0,89246.0,0.09475641]
[1740542886346,0.03117001,89247.0,89246.0,0.09875641]
[1740542886572,0.03117001,89247.0,89246.0,0.09375641]
[1740542886772,0.03117001,89247.0,89246.0,0.09875641]
[1740542887641,0.03117001,89247.0,89246.0,0.08208974]
[1740542887951,0.03117001,89247.0,89246.0,0.07808974]
[1740542888157,0.03117001,89247.0,89246.0,0.07308974]
[1740542888352,0.03117001,89247.0,89246.0,0.06563333]
[1740542888582,0.03117001,89247.0,89246.0,0.07463333]
[1740542888797,0.03117001,89247.0,89246.0,0.08128142]
[1740542889012,0.03117001,89247.0,89246.0,0.07628142]
[1740542889237,0.03117001,89247.0,89246.0,0.08941568]
[1740542889434,0.03117001,89247.0,89246.0,0.08541568]
[1740542889868,0.03117001,89247.0,89246.0,0.08041568]
[1740542890180,0.03117001,89247.0,89246.0,0.08541568]
[1740542890830,0.03117001,89247.0,89246.0,0.08276759]
[1740542891156,0.03117001,89247.0,89246.0,0.07876759]
[1740542891306,0.03117001,89247.0,89246.0,0.08276759]
[1740542894353,0.03117001,89247.0,89246.0,0.25084159]
[1740542895266,0.03117001,89247.0,89246.0,0.08276759]
[1740542895472,0.03117001,89247.0,89246.0,0.09112911]
[1740542895847,0.03117001,89247.0,89246.0,0.25920311]
[1740542897821,0.03117001,89247.0,89246.0,0.09112911]
[1740542898822,0.03117001,89247.0,89246.0,0.25920311]
[1740542899223,0.03117001,89247.0,89246.0,0.09112911]
[1740542900984,0.03117001,89247.0,89246.0,0.25920311]
[1740542901263,0.03117001,89247.0,89246.0,0.30820311]
[1740542905312,0.0004242,89247.0,89246.0,0.63330311]
[1740542906063,0.0004242,89247.0,89246.0,0.62830311]
[1740542906295,0.0004242,89247.0,89246.0,0.63330311]
[1740542906848,0.0004242,89247.0,89246.0,0.62830311]
[1740542907054,0.0004242,89247.0,89246.0,0.62430311]
[1740542907256,0.0310818,89247.0,89246.0,0.62830311]
[1740542907592,0.0004242,89247.0,89246.0,0.62430311]
[1740542907976,0.0004242,89247.0,89246.0,0.63130311]
[1740542908239,0.0004242,89247.0,89246.0,0.63830311]
[1740542909425,0.0004242,89247.0,89246.0,0.46186759]
[1740542909626,0.0319228,89247.0,89246.0,0.39623426]
[1740542909835,0.0004242,89247.0,89246.0,0.39623426]
[1740542910199,0.0004242,89247.0,89246.0,0.34808186]
[1740542910430,0.0004242,89247.0,89246.0,0.39363894]
[1740542910777,0.0004242,89247.0,89246.0,0.34808186]
[1740542910778,0.03213145,89247.0,89246.0,0.34808186]
[1740542914686,0.03213145,89247.0,89246.0,0.02298186]
[1740542918409,0.03213145,89247.0,89246.0,0.0148476]
[1740542920849,0.03213145,89247.0,89246.0,0.02230401]
[1740542921054,0.03213145,89247.0,89246.0,0.06399593]
[1740542921919,0.03213145,89247.0,89246.0,0.13929593]
[1740542922114,0.03213145,89247.0,89246.0,0.09760401]
[1740542926460,3.937e-05,89250.0,89246.0,0.09760401]
[1740542927476,3.937e-05,89250.0,89246.0,0.08360401]
[1740542927657,3.937e-05,89250.0,89246.0,0.09760401]
[1740542928400,0.02722635,89250.0,89246.0,0.26567801]
[1740542928603,3.937e-05,89250.0,89247.0,0.07147446]
[1740542928835,3.937e-05,89250.0,89247.0,0.23954646]
[1740542929051,3.937e-05,89250.0,89248.0,0.00745456]
[1740542930043,3.937e-05,89250.0,89249.0,0.168069]
[1740542930235,3.937e-05,89250.0,89249.0,0.2943134]
[1740542930441,3.937e-05,89250.0,89249.0,0.30019841]
[1740542931217,0.0100639,89288.0,89249.0,0.30019841]
[1740542931465,0.0273386,89254.0,89250.0,0.168066]
[1740542931664,0.30012592,89266.0,89251.0,0.06643116]
[1740542931867,0.30012592,89266.0,89251.0,0.07388294]
[1740542932470,0.00012592,89266.0,89251.0,0.07388294]
[1740542932898,0.02786228,89266.0,89251.0,0.07388294]
[1740542933716,0.16804,89264.0,89251.0,0.07388294]
[1740542933938,0.02786228,89266.0,89252.0,0.06471295]
[1740542934148,0.02786228,89266.0,89253.0,0.08426848]
[1740542934265,0.02786228,89266.0,89256.0,0.168054]
[1740542934464,0.3,89272.0,89256.0,0.168054]
[1740542934701,0.3,89272.0,89257.0,0.00744623]
[1740542934909,0.3,89272.0,89258.0,0.07094902]
[1740542935349,0.3,89272.0,89259.0,0.00744438]
[1740542935512,0.3,89274.0,89259.0,0.00744438]
[1740542935735,0.3274927,89274.0,89256.0,0.00012592]
[1740542935898,0.5515227,89274.0,89260.0,0.00744346]
[1740542936092,0.3,89271.0,89257.0,0.00744623]
[1740542936393,0.3,89271.0,89256.0,0.00012592]
[1740542936510,0.3,89271.0,89258.0,0.00744531]
[1740542936717,0.3,89271.0,89257.0,0.00744623]
[1740542936923,0.3,89271.0,89259.0,0.00744438]
[1740542937171,0.3,89271.0,89258.0,0.00744531]
[1740542937373,0.3,89272.0,89259.0,0.00744438]
[1740542937681,0.3,89272.0,89260.0,0.02583273]
[1740542937833,0.3,89272.0,89260.0,0.00744346]
[1740542938239,0.0274927,89274.0,89260.0,0.17549146]
[1740542938568,0.168018,89276.0,89260.0,0.00744346]
[1740542939401,0.224019,89279.0,89260.0,0.00744346]
[1740542939601,0.04798154,89280.0,89260.0,0.00744346]
[1740542939812,0.3,89272.0,89259.0,0.001]
[1740542940100,0.3,89272.0,89261.0,0.00744253]
[1740542940314,0.168031,89269.0,89260.0,0.03463195]
[1740542940517,0.3,89270.0,89262.0,0.00744161]
[1740542940670,0.3,89270.0,89256.0,0.00012592]
[1740542940876,0.3,89270.0,89257.0,0.168053]
[1740542941176,0.3,89270.0,89257.0,0.17549923]
[1740542941410,0.3,89273.0,89257.0,0.00744623]
[1740542941629,0.3,89273.0,89262.0,0.002]
[1740542942005,0.3,89271.0,89263.0,0.00744068]
[1740542942203,0.3,89271.0,89262.0,0.002]
[1740542942874,0.3,89273.0,89262.0,0.001]
[1740542943081,0.3,89273.0,89263.0,0.00744068]
[1740542943902,0.468018,89276.0,89263.0,0.00744068]
[1740542944642,0.468018,89276.0,89263.0,0.00844068]
[1740542944802,0.3,89272.0,89263.0,0.003]
[1740542945468,0.3,89272.0,89264.0,0.1308]
[1740542945683,0.3,89272.0,89265.0,0.0524911]
[1740542945801,0.3,89276.0,89265.0,0.05992993]
[1740542946001,0.3,89276.0,89265.0,0.00743883]
[1740542946242,0.168022,89274.0,89264.0,0.1308]
[1740542946512,0.3,89276.0,89264.0,0.1308]
[1740542946684,0.16802,89275.0,89264.0,0.1308]
[1740542946884,0.02730318,89279.0,89266.0,0.224049]
[1740542947141,0.0004241,89282.0,89264.0,0.1308]
[1740542947142,0.0004237,89280.0,89268.0,0.0797]
[1740542947337,0.0004237,89280.0,89272.0,0.168025]
[1740542947483,0.0004237,89280.0,89279.0,0.250812]
[1740542947688,0.0004237,89280.0,89279.0,0.2804332]